[Event "*** Titled Tuesday Blitz"]
[Site "Chess.com"]
[Date "2021.03.16"]
[Round "2"]
[White "bricolageur"]
[Black "DamianoLew95"]
[Result "0-1"]
[WhiteElo "2234"]
[BlackElo "2478"]
[TimeControl "180+1"]
[EndTime "10:18:00 PDT"]
[Termination "DamianoLew95 won by resignation"]

1. e4 {[%clk 0:03:00.9]} 1... c5 {[%clk 0:02:58.6]} 2. Nf3 {[%clk 0:02:55.8]}
2... d6 {[%clk 0:02:57.5]} 3. d4 {[%clk 0:02:55.6]} 3... cxd4 {[%clk 0:02:58.4]}
4. Nxd4 {[%clk 0:02:56.4]} 4... Nf6 {[%clk 0:02:58.9]} 5. Nc3 {[%clk 0:02:57]}
5... Nc6 {[%clk 0:02:59]} 6. Bc4 {[%clk 0:02:57.2]} 6... Qb6 {[%clk 0:02:54.9]}
7. Nb3 {[%clk 0:02:53.9]} 7... e6 {[%clk 0:02:51.9]} 8. Bf4 {[%clk 0:02:54]}
8... Ne5 {[%clk 0:02:48.9]} 9. Be2 {[%clk 0:02:51.5]} 9... Bd7 {[%clk
0:02:44.4]} 10. g4 {[%clk 0:02:41.5]} 10... h6 {[%clk 0:02:41.5]} 11. h4 {[%clk
0:02:41.4]} 11... a6 {[%clk 0:02:36.2]} 12. Rh2 {[%clk 0:02:36.6]} 12... Rc8
{[%clk 0:02:26.9]} 13. Be3 {[%clk 0:02:04.4]} 13... Qc7 {[%clk 0:02:11]} 14. Rg2
{[%clk 0:00:50]} 14... Nc4 {[%clk 0:02:09]} 15. Bxc4 {[%clk 0:00:49.9]} 15...
Qxc4 {[%clk 0:02:09.9]} 16. f3 {[%clk 0:00:44.1]} 16... Be7 {[%clk 0:02:08.4]}
17. Qd2 {[%clk 0:00:41]} 17... d5 {[%clk 0:01:36.5]} 18. e5 {[%clk 0:00:39.3]}
18... d4 {[%clk 0:01:33.1]} 19. Qxd4 {[%clk 0:00:22.4]} 19... Nd5 {[%clk
0:01:21.7]} 20. Nxd5 {[%clk 0:00:21.2]} 20... Bxh4+ {[%clk 0:01:17.5]} 21. Bf2
{[%clk 0:00:16]} 21... Bxf2+ {[%clk 0:01:08.5]} 22. Rxf2 {[%clk 0:00:16.9]}
22... exd5 {[%clk 0:01:03.5]} 23. O-O-O {[%clk 0:00:16.7]} 23... Be6 {[%clk
0:00:51.5]} 24. Rh1 {[%clk 0:00:14.9]} 24... Qb5 {[%clk 0:00:46.9]} 25. Kb1
{[%clk 0:00:13.8]} 25... Rc4 {[%clk 0:00:45.8]} 26. Qd2 {[%clk 0:00:12.8]} 26...
Qb6 {[%clk 0:00:42.6]} 27. Rd1 {[%clk 0:00:12.5]} 27... g6 {[%clk 0:00:38.9]}
28. Rh2 {[%clk 0:00:11.2]} 28... Qc7 {[%clk 0:00:34.3]} 29. Nd4 {[%clk
0:00:11.3]} 29... Qxe5 {[%clk 0:00:31.6]} 30. c3 {[%clk 0:00:10.5]} 30... Qg7
{[%clk 0:00:26.3]} 31. Re2 {[%clk 0:00:10.4]} 31... O-O {[%clk 0:00:22]} 32. Rh1
{[%clk 0:00:10.2]} 32... g5 {[%clk 0:00:18.9]} 33. Nxe6 {[%clk 0:00:10.6]} 33...
Qg6+ {[%clk 0:00:18.8]} 34. Ka1 {[%clk 0:00:09.7]} 34... fxe6 {[%clk 0:00:19]}
35. Rhe1 {[%clk 0:00:10.1]} 35... Rf6 {[%clk 0:00:18.3]} 36. Re3 {[%clk
0:00:09]} 36... Rcf4 {[%clk 0:00:18.2]} 37. Qe2 {[%clk 0:00:07.5]} 37... Qf7
{[%clk 0:00:16.7]} 38. a3 {[%clk 0:00:08]} 38... Rxf3 {[%clk 0:00:16.2]} 39.
Rxf3 {[%clk 0:00:08.5]} 39... Rxf3 {[%clk 0:00:15.9]} 40. Qxe6 {[%clk
0:00:08.7]} 40... Qxe6 {[%clk 0:00:15.5]} 41. Rxe6 {[%clk 0:00:09.6]} 41... Kg7
{[%clk 0:00:15.9]} 42. Rd6 {[%clk 0:00:09.4]} 42... Rf4 {[%clk 0:00:16.1]} 43.
Rd7+ {[%clk 0:00:09.6]} 43... Kf6 {[%clk 0:00:16.2]} 44. Rxb7 {[%clk 0:00:09.8]}
44... Rxg4 {[%clk 0:00:16.3]} 45. Rb6+ {[%clk 0:00:10.4]} 45... Kg7 {[%clk
0:00:15.5]} 46. Rxa6 {[%clk 0:00:10.7]} 46... Rf4 {[%clk 0:00:15.8]} 47. Rd6
{[%clk 0:00:10.5]} 47... g4 {[%clk 0:00:14.9]} 48. Rxd5 {[%clk 0:00:10.9]} 48...
g3 {[%clk 0:00:15.3]} 49. Rd3 {[%clk 0:00:09.4]} 49... Rg4 {[%clk 0:00:15.2]}
50. Rd1 {[%clk 0:00:09.3]} 50... h5 {[%clk 0:00:15.6]} 51. Rg1 {[%clk
0:00:06.5]} 51... h4 {[%clk 0:00:15.8]} 52. c4 {[%clk 0:00:07.1]} 52... Rxc4
{[%clk 0:00:15.8]} 53. Ka2 {[%clk 0:00:06.3]} 53... Rg4 {[%clk 0:00:15.7]} 54.
Kb3 {[%clk 0:00:06.6]} 54... h3 {[%clk 0:00:16]} 0-1

[Event "*** Titled Tuesday Blitz"]
[Site "Chess.com"]
[Date "2021.03.16"]
[Round "2"]
[White "VladaSviridova"]
[Black "mjray79"]
[Result "0-1"]
[WhiteElo "2223"]
[BlackElo "2456"]
[TimeControl "180+1"]
[EndTime "10:18:01 PDT"]
[Termination "mjray79 won by resignation"]

1. d4 {[%clk 0:03:00.9]} 1... Nf6 {[%clk 0:02:59.5]} 2. c4 {[%clk 0:03:00.1]}
2... g6 {[%clk 0:03:00]} 3. Nc3 {[%clk 0:03:00.1]} 3... Bg7 {[%clk 0:03:00.9]}
4. e4 {[%clk 0:03:00.2]} 4... d6 {[%clk 0:03:01.4]} 5. Nf3 {[%clk 0:03:00.8]}
5... O-O {[%clk 0:03:01.7]} 6. Be2 {[%clk 0:03:01.5]} 6... e5 {[%clk 0:03:02.2]}
7. O-O {[%clk 0:03:01.4]} 7... Nc6 {[%clk 0:03:02.2]} 8. d5 {[%clk 0:03:01.8]}
8... Ne7 {[%clk 0:03:02.2]} 9. Ne1 {[%clk 0:03:02.6]} 9... Nd7 {[%clk
0:03:00.3]} 10. Be3 {[%clk 0:03:03.3]} 10... f5 {[%clk 0:03:00.2]} 11. f3 {[%clk
0:03:04]} 11... f4 {[%clk 0:03:00.6]} 12. Bf2 {[%clk 0:03:04.5]} 12... g5 {[%clk
0:03:01.1]} 13. Nd3 {[%clk 0:03:04.1]} 13... Nf6 {[%clk 0:02:52]} 14. c5 {[%clk
0:03:03.9]} 14... h5 {[%clk 0:02:51.4]} 15. Rc1 {[%clk 0:03:02.9]} 15... Rf7
{[%clk 0:02:50]} 16. Kh1 {[%clk 0:03:01.3]} 16... Ng6 {[%clk 0:02:46.8]} 17. Rg1
{[%clk 0:02:59.9]} 17... g4 {[%clk 0:02:45.5]} 18. g3 {[%clk 0:01:56.2]} 18...
fxg3 {[%clk 0:02:24.3]} 19. Rxg3 {[%clk 0:01:55.5]} 19... Bh6 {[%clk 0:02:00.6]}
20. Rc2 {[%clk 0:01:54.3]} 20... Kh7 {[%clk 0:01:38.9]} 21. fxg4 {[%clk
0:01:41.9]} 21... Bxg4 {[%clk 0:01:39.8]} 22. Bxg4 {[%clk 0:01:30.8]} 22... Nxg4
{[%clk 0:01:40.7]} 23. Bg1 {[%clk 0:01:22]} 23... Qh4 {[%clk 0:01:32.5]} 24.
Rcg2 {[%clk 0:01:12.7]} 24... Raf8 {[%clk 0:01:29.7]} 25. Rxg4 {[%clk
0:00:46.7]} 25... hxg4 {[%clk 0:01:30.6]} 26. Rxg4 {[%clk 0:00:46.5]} 26... Qh5
{[%clk 0:01:29.3]} 27. Qe2 {[%clk 0:00:36.7]} 27... Rf3 {[%clk 0:01:10.9]} 28.
Rg2 {[%clk 0:00:18.4]} 28... Nh4 {[%clk 0:01:05.7]} 29. Rg3 {[%clk 0:00:17.2]}
29... Qf7 {[%clk 0:01:04.1]} 30. Rxf3 {[%clk 0:00:12.1]} 30... Qxf3+ {[%clk
0:01:04.2]} 31. Qxf3 {[%clk 0:00:12]} 31... Rxf3 {[%clk 0:01:04.4]} 32. Nf2
{[%clk 0:00:11.6]} 32... Be3 {[%clk 0:01:03.6]} 33. Ng4 {[%clk 0:00:10.7]} 33...
Bxg1 {[%clk 0:01:02.3]} 34. Kxg1 {[%clk 0:00:10.6]} 34... Kg6 {[%clk 0:00:58.1]}
35. Nf2 {[%clk 0:00:09.7]} 35... Rf7 {[%clk 0:00:54.5]} 36. Kf1 {[%clk
0:00:09.9]} 36... a6 {[%clk 0:00:54]} 37. Ke2 {[%clk 0:00:09.6]} 37... Kg5
{[%clk 0:00:54.4]} 38. cxd6 {[%clk 0:00:09.3]} 38... cxd6 {[%clk 0:00:54.3]} 39.
a4 {[%clk 0:00:09.5]} 39... Ng6 {[%clk 0:00:54.2]} 40. a5 {[%clk 0:00:09]} 40...
Nf4+ {[%clk 0:00:54.4]} 41. Kd2 {[%clk 0:00:08.7]} 41... Nxd5 {[%clk 0:00:52.5]}
42. Nxd5 {[%clk 0:00:08.1]} 42... Rxf2+ {[%clk 0:00:52.2]} 43. Kc3 {[%clk
0:00:08.3]} 43... Rxh2 {[%clk 0:00:49.1]} 44. b4 {[%clk 0:00:08.5]} 44... Re2
{[%clk 0:00:48.1]} 45. Kd3 {[%clk 0:00:08.7]} 45... Rb2 {[%clk 0:00:47.1]} 46.
Kc3 {[%clk 0:00:08.5]} 46... Rh2 {[%clk 0:00:47]} 47. Kd3 {[%clk 0:00:08.4]}
47... Kg4 {[%clk 0:00:47]} 48. Nf6+ {[%clk 0:00:07.9]} 48... Kf3 {[%clk
0:00:47.1]} 49. Ne8 {[%clk 0:00:08]} 49... Rh1 {[%clk 0:00:42.9]} 50. Nf6 {[%clk
0:00:05.3]} 50... Rd1+ {[%clk 0:00:41.3]} 51. Kc3 {[%clk 0:00:04.9]} 51... Rd4
{[%clk 0:00:42.2]} 52. Kb3 {[%clk 0:00:02.7]} 52... Rxe4 {[%clk 0:00:40.7]} 53.
Nxe4 {[%clk 0:00:02.8]} 53... Kxe4 {[%clk 0:00:41.6]} 54. Kc4 {[%clk 0:00:03.1]}
54... d5+ {[%clk 0:00:41.3]} 55. Kc5 {[%clk 0:00:03.8]} 55... d4 {[%clk
0:00:41.3]} 56. Kb6 {[%clk 0:00:03.7]} 56... d3 {[%clk 0:00:41.6]} 57. b5 {[%clk
0:00:03.6]} 57... d2 {[%clk 0:00:38.4]} 58. bxa6 {[%clk 0:00:03.6]} 58... bxa6
{[%clk 0:00:37.5]} 59. Kxa6 {[%clk 0:00:03.5]} 59... d1=Q {[%clk 0:00:38.4]} 0-1

[Event "*** Titled Tuesday Blitz"]
[Site "Chess.com"]
[Date "2021.03.16"]
[Round "2"]
[White "Agnes66678"]
[Black "Supernotar"]
[Result "0-1"]
[WhiteElo "2413"]
[BlackElo "2712"]
[TimeControl "180+1"]
[EndTime "10:18:03 PDT"]
[Termination "Supernotar won by resignation"]

1. d4 {[%clk 0:03:00.6]} 1... d5 {[%clk 0:02:59.6]} 2. c4 {[%clk 0:03:00.3]}
2... dxc4 {[%clk 0:02:59.2]} 3. e4 {[%clk 0:02:59.7]} 3... Nf6 {[%clk
0:02:55.2]} 4. e5 {[%clk 0:02:59.3]} 4... Nd5 {[%clk 0:02:54.5]} 5. Bxc4 {[%clk
0:02:59.6]} 5... Nb6 {[%clk 0:02:54.3]} 6. Bb3 {[%clk 0:02:59]} 6... Nc6 {[%clk
0:02:53.5]} 7. Ne2 {[%clk 0:02:59]} 7... Bf5 {[%clk 0:02:52.5]} 8. Nbc3 {[%clk
0:02:58.2]} 8... e6 {[%clk 0:02:49]} 9. Be3 {[%clk 0:02:56.1]} 9... Nb4 {[%clk
0:02:47]} 10. O-O {[%clk 0:02:52.9]} 10... Be7 {[%clk 0:02:42.1]} 11. Ng3 {[%clk
0:02:38.5]} 11... Bg6 {[%clk 0:02:41.5]} 12. a3 {[%clk 0:02:23.2]} 12... N4d5
{[%clk 0:02:40.5]} 13. Bd2 {[%clk 0:02:22.9]} 13... O-O {[%clk 0:02:36.2]} 14.
Bc2 {[%clk 0:02:22.1]} 14... c5 {[%clk 0:02:27.1]} 15. dxc5 {[%clk 0:02:19]}
15... Bxc5 {[%clk 0:02:25.2]} 16. Nge4 {[%clk 0:02:10.8]} 16... Be7 {[%clk
0:02:23.3]} 17. Rc1 {[%clk 0:02:07.4]} 17... Rc8 {[%clk 0:02:22.1]} 18. Kh1
{[%clk 0:01:56.8]} 18... Qd7 {[%clk 0:02:18.6]} 19. Nxd5 {[%clk 0:01:52.9]}
19... Qxd5 {[%clk 0:02:02.9]} 20. Nd6 {[%clk 0:01:33.3]} 20... Rxc2 {[%clk
0:01:51]} 21. Rxc2 {[%clk 0:01:32.2]} 21... Bxc2 {[%clk 0:01:51.9]} 22. Qxc2
{[%clk 0:01:32]} 22... Bxd6 {[%clk 0:01:35.7]} 23. exd6 {[%clk 0:01:32.9]} 23...
Rc8 {[%clk 0:01:33.9]} 24. Bc3 {[%clk 0:01:24.4]} 24... Qxd6 {[%clk 0:01:29.4]}
25. Qe4 {[%clk 0:01:20.7]} 25... Nd5 {[%clk 0:01:23.4]} 26. Be5 {[%clk
0:01:20.2]} 26... Qa6 {[%clk 0:01:20.1]} 27. Rd1 {[%clk 0:01:17]} 27... Qc4
{[%clk 0:01:16.5]} 28. Qe1 {[%clk 0:01:04.7]} 28... Qc2 {[%clk 0:01:10.3]} 29.
h3 {[%clk 0:01:01.6]} 29... h6 {[%clk 0:01:06.8]} 30. Kh2 {[%clk 0:00:59.7]}
30... Rc4 {[%clk 0:00:57.6]} 31. Rd2 {[%clk 0:00:59.5]} 31... Qf5 {[%clk
0:00:48.3]} 32. g3 {[%clk 0:00:53.6]} 32... Re4 {[%clk 0:00:45.3]} 33. Re2
{[%clk 0:00:53.6]} 33... Rxe2 {[%clk 0:00:39.6]} 34. Qxe2 {[%clk 0:00:54.5]}
34... a6 {[%clk 0:00:36.1]} 35. Bd4 {[%clk 0:00:53.7]} 35... h5 {[%clk
0:00:29.7]} 36. h4 {[%clk 0:00:53.6]} 36... f6 {[%clk 0:00:26.8]} 37. Qc4 {[%clk
0:00:48.2]} 37... Kh7 {[%clk 0:00:23.7]} 38. Bc5 {[%clk 0:00:44]} 38... Qe5
{[%clk 0:00:20.6]} 39. b4 {[%clk 0:00:41.8]} 39... Kg8 {[%clk 0:00:19.1]} 40. a4
{[%clk 0:00:41.1]} 40... Qc7 {[%clk 0:00:17.7]} 41. Qe4 {[%clk 0:00:39.1]} 41...
Kf7 {[%clk 0:00:15.9]} 42. Qf3 {[%clk 0:00:38.1]} 42... g6 {[%clk 0:00:14.6]}
43. a5 {[%clk 0:00:37.9]} 43... Qc6 {[%clk 0:00:14.3]} 44. Kg2 {[%clk
0:00:37.8]} 44... Ne7 {[%clk 0:00:12.3]} 45. Bb6 {[%clk 0:00:29.3]} 45... Qxf3+
{[%clk 0:00:11.1]} 46. Kxf3 {[%clk 0:00:30.2]} 46... e5 {[%clk 0:00:11.3]} 47.
Ke4 {[%clk 0:00:29.4]} 47... Ke6 {[%clk 0:00:11.7]} 48. Bd8 {[%clk 0:00:28.6]}
48... f5+ {[%clk 0:00:11.3]} 49. Kd3 {[%clk 0:00:28.2]} 49... Nc6 {[%clk
0:00:11.5]} 50. Bg5 {[%clk 0:00:23.5]} 50... Nxb4+ {[%clk 0:00:11.4]} 51. Kc4
{[%clk 0:00:24]} 51... Nc6 {[%clk 0:00:11.2]} 52. Kc5 {[%clk 0:00:24.9]} 52...
Nxa5 {[%clk 0:00:10.8]} 53. Kb6 {[%clk 0:00:25.8]} 53... Nc4+ {[%clk 0:00:09.3]}
54. Kxb7 {[%clk 0:00:25.7]} 54... a5 {[%clk 0:00:09.8]} 55. Kc6 {[%clk
0:00:25.7]} 55... a4 {[%clk 0:00:10.1]} 56. Bd2 {[%clk 0:00:24.5]} 56... Nxd2
{[%clk 0:00:09.9]} 0-1

[Event "*** Titled Tuesday Blitz"]
[Site "Chess.com"]
[Date "2021.03.16"]
[Round "2"]
[White "CrazyMartian"]
[Black "Nesty_Javi_Chess"]
[Result "0-1"]
[WhiteElo "2238"]
[BlackElo "2635"]
[TimeControl "180+1"]
[EndTime "10:18:11 PDT"]
[Termination "Nesty_Javi_Chess won by resignation"]

1. d4 {[%clk 0:03:00.9]} 1... Nf6 {[%clk 0:02:58.9]} 2. c4 {[%clk 0:02:59.3]}
2... g6 {[%clk 0:02:58.2]} 3. Nc3 {[%clk 0:02:59.3]} 3... d6 {[%clk 0:02:54.1]}
4. e4 {[%clk 0:02:58.5]} 4... Bg7 {[%clk 0:02:55]} 5. Nf3 {[%clk 0:02:54.7]}
5... O-O {[%clk 0:02:54.8]} 6. Be2 {[%clk 0:02:54.7]} 6... e5 {[%clk 0:02:54.9]}
7. O-O {[%clk 0:02:54.1]} 7... Nc6 {[%clk 0:02:54.7]} 8. dxe5 {[%clk 0:02:52]}
8... Nxe5 {[%clk 0:02:53.5]} 9. Nxe5 {[%clk 0:02:51.2]} 9... dxe5 {[%clk
0:02:54.4]} 10. Qa4 {[%clk 0:02:37.4]} 10... c6 {[%clk 0:02:53.6]} 11. Rd1
{[%clk 0:02:35.5]} 11... Qe7 {[%clk 0:02:53.2]} 12. Be3 {[%clk 0:02:34.7]} 12...
Be6 {[%clk 0:02:53.2]} 13. c5 {[%clk 0:02:15.1]} 13... a6 {[%clk 0:02:46.2]} 14.
Rd6 {[%clk 0:02:06.7]} 14... Rfd8 {[%clk 0:02:42.6]} 15. Rad1 {[%clk 0:02:06.1]}
15... Ne8 {[%clk 0:02:42.3]} 16. Rxd8 {[%clk 0:01:54.9]} 16... Rxd8 {[%clk
0:02:43.2]} 17. f3 {[%clk 0:01:30.3]} 17... Rxd1+ {[%clk 0:02:35.5]} 18. Qxd1
{[%clk 0:01:29.5]} 18... h6 {[%clk 0:02:34.9]} 19. b4 {[%clk 0:01:27.1]} 19...
f5 {[%clk 0:02:34.4]} 20. a3 {[%clk 0:01:24.2]} 20... Kh7 {[%clk 0:02:29.6]} 21.
Qd2 {[%clk 0:01:17.6]} 21... Nf6 {[%clk 0:02:22.5]} 22. a4 {[%clk 0:00:52]}
22... Qf7 {[%clk 0:02:20.6]} 23. b5 {[%clk 0:00:47.7]} 23... axb5 {[%clk
0:02:21.5]} 24. axb5 {[%clk 0:00:47]} 24... Bc4 {[%clk 0:02:21.6]} 25. bxc6
{[%clk 0:00:44.3]} 25... bxc6 {[%clk 0:02:21]} 26. Bd3 {[%clk 0:00:32.6]} 26...
Bxd3 {[%clk 0:02:06]} 27. Qxd3 {[%clk 0:00:32.6]} 27... f4 {[%clk 0:01:25.9]}
28. Bf2 {[%clk 0:00:31.2]} 28... Qb3 {[%clk 0:01:23.2]} 29. g3 {[%clk
0:00:21.6]} 29... g5 {[%clk 0:01:22.4]} 30. Kg2 {[%clk 0:00:20.3]} 30... fxg3
{[%clk 0:01:12.4]} 31. hxg3 {[%clk 0:00:20.1]} 31... h5 {[%clk 0:01:12]} 32. Qe3
{[%clk 0:00:18.5]} 32... Bh6 {[%clk 0:01:00.8]} 33. Nd5 {[%clk 0:00:16.1]} 33...
Qxe3 {[%clk 0:00:59.9]} 34. Nxf6+ {[%clk 0:00:15.9]} 34... Kg6 {[%clk
0:01:00.3]} 35. Bxe3 {[%clk 0:00:15.5]} 35... Kxf6 {[%clk 0:01:00.6]} 36. Kf2
{[%clk 0:00:15.5]} 36... Kg6 {[%clk 0:00:46.1]} 37. Kg2 {[%clk 0:00:15.3]} 37...
Bf8 {[%clk 0:00:40.5]} 38. Kf2 {[%clk 0:00:14.7]} 38... Be7 {[%clk 0:00:39]} 39.
Kg2 {[%clk 0:00:13.7]} 39... Kf6 {[%clk 0:00:36.9]} 40. Kf2 {[%clk 0:00:13.3]}
40... Ke6 {[%clk 0:00:36.9]} 41. Ke2 {[%clk 0:00:13.5]} 41... Kd7 {[%clk
0:00:35.4]} 42. Kd3 {[%clk 0:00:13.6]} 42... h4 {[%clk 0:00:32.9]} 43. gxh4
{[%clk 0:00:08.3]} 43... gxh4 {[%clk 0:00:33.8]} 44. Bg1 {[%clk 0:00:07]} 44...
h3 {[%clk 0:00:30.3]} 45. Ke2 {[%clk 0:00:07.2]} 45... Bxc5 {[%clk 0:00:16.6]}
46. Kf1 {[%clk 0:00:04.2]} 46... Bxg1 {[%clk 0:00:10.6]} 47. Kxg1 {[%clk
0:00:04.7]} 47... c5 {[%clk 0:00:11.5]} 48. Kh2 {[%clk 0:00:05.1]} 48... c4
{[%clk 0:00:12.1]} 49. Kxh3 {[%clk 0:00:06]} 49... c3 {[%clk 0:00:12.7]} 50. Kg2
{[%clk 0:00:06.9]} 50... c2 {[%clk 0:00:12.5]} 51. Kf2 {[%clk 0:00:07.8]} 51...
c1=Q {[%clk 0:00:13]} 52. Ke2 {[%clk 0:00:08.7]} 52... Qf4 {[%clk 0:00:13.5]}
0-1

[Event "*** Titled Tuesday Blitz"]
[Site "Chess.com"]
[Date "2021.03.16"]
[Round "2"]
[White "rachidhuilda"]
[Black "SharapovEvgeny"]
[Result "1-0"]
[WhiteElo "2301"]
[BlackElo "2481"]
[TimeControl "180+1"]
[EndTime "10:18:12 PDT"]
[Termination "rachidhuilda won by resignation"]

1. d4 {[%clk 0:03:00.9]} 1... d5 {[%clk 0:02:59.4]} 2. c4 {[%clk 0:02:59.3]}
2... c6 {[%clk 0:02:59.4]} 3. Nf3 {[%clk 0:02:57.9]} 3... Nf6 {[%clk 0:02:59.2]}
4. Nc3 {[%clk 0:02:57.1]} 4... g6 {[%clk 0:02:58.8]} 5. c5 {[%clk 0:02:56.3]}
5... Bg7 {[%clk 0:02:58.4]} 6. h3 {[%clk 0:02:56.2]} 6... O-O {[%clk 0:02:58]}
7. Bf4 {[%clk 0:02:56.8]} 7... Bf5 {[%clk 0:02:52.7]} 8. e3 {[%clk 0:02:56.5]}
8... Ne4 {[%clk 0:02:52.1]} 9. Be2 {[%clk 0:02:55.8]} 9... Nxc3 {[%clk
0:02:51.1]} 10. bxc3 {[%clk 0:02:55.5]} 10... b6 {[%clk 0:02:50.8]} 11. cxb6
{[%clk 0:02:54.9]} 11... axb6 {[%clk 0:02:50.5]} 12. O-O {[%clk 0:02:43.5]}
12... Nd7 {[%clk 0:02:49.7]} 13. a4 {[%clk 0:02:43.2]} 13... Be4 {[%clk
0:02:46.7]} 14. Qb3 {[%clk 0:02:39.5]} 14... Bxf3 {[%clk 0:02:44.1]} 15. Bxf3
{[%clk 0:02:39.7]} 15... e5 {[%clk 0:02:44.3]} 16. Bh2 {[%clk 0:02:37.2]} 16...
e4 {[%clk 0:02:36.9]} 17. Be2 {[%clk 0:02:37]} 17... Ra5 {[%clk 0:02:21.7]} 18.
c4 {[%clk 0:02:25.7]} 18... c5 {[%clk 0:02:20.6]} 19. cxd5 {[%clk 0:02:19.5]}
19... cxd4 {[%clk 0:02:20]} 20. exd4 {[%clk 0:02:19.8]} 20... Bxd4 {[%clk
0:02:19.2]} 21. Rad1 {[%clk 0:02:16.9]} 21... Bg7 {[%clk 0:02:13.9]} 22. Bb5
{[%clk 0:02:09.4]} 22... Nc5 {[%clk 0:02:12.5]} 23. Qc2 {[%clk 0:02:05.8]} 23...
Qg5 {[%clk 0:02:03.3]} 24. Bd6 {[%clk 0:01:51.5]} 24... Rd8 {[%clk 0:01:59.2]}
25. Bxc5 {[%clk 0:01:51.7]} 25... bxc5 {[%clk 0:01:59]} 26. Qxe4 {[%clk
0:01:48.3]} 26... Bd4 {[%clk 0:01:52.6]} 27. Bc6 {[%clk 0:01:27.7]} 27... Ra7
{[%clk 0:01:46.8]} 28. Rfe1 {[%clk 0:01:26.1]} 28... Qf6 {[%clk 0:01:41.8]} 29.
Re2 {[%clk 0:01:14.7]} 29... h5 {[%clk 0:01:39.8]} 30. Rd3 {[%clk 0:01:03.1]}
30... Rb8 {[%clk 0:01:31.8]} 31. Rf3 {[%clk 0:01:01.4]} 31... Qg5 {[%clk
0:01:23.3]} 32. d6 {[%clk 0:00:43]} 32... Rd8 {[%clk 0:00:54]} 33. d7 {[%clk
0:00:42.2]} 33... Kg7 {[%clk 0:00:46.7]} 34. g3 {[%clk 0:00:37]} 34... Raxd7
{[%clk 0:00:44]} 35. Bxd7 {[%clk 0:00:36.4]} 35... Rxd7 {[%clk 0:00:44.3]} 36.
h4 {[%clk 0:00:33.4]} 36... Qc1+ {[%clk 0:00:41.2]} 37. Kg2 {[%clk 0:00:29.3]}
37... Qd1 {[%clk 0:00:39.9]} 38. Qe8 {[%clk 0:00:21.1]} 38... Bf6 {[%clk
0:00:26.8]} 39. Rxf6 {[%clk 0:00:15.2]} 39... c4 {[%clk 0:00:17.9]} 40. Qe5
{[%clk 0:00:13.8]} 40... Qd5+ {[%clk 0:00:16.5]} 41. Qxd5 {[%clk 0:00:13.4]}
41... Rxd5 {[%clk 0:00:16.5]} 42. Rc6 {[%clk 0:00:13.8]} 42... Rd4 {[%clk
0:00:14.8]} 43. Rc2 {[%clk 0:00:13.8]} 43... c3 {[%clk 0:00:14.8]} 44. R6xc3
{[%clk 0:00:14.3]} 44... Rxa4 {[%clk 0:00:14.8]} 45. Rc7 {[%clk 0:00:14.7]}
45... Ra6 {[%clk 0:00:14.4]} 46. Re2 {[%clk 0:00:14.7]} 46... Rf6 {[%clk
0:00:13.8]} 47. Ree7 {[%clk 0:00:15.1]} 47... Rf5 {[%clk 0:00:13.8]} 48. f3
{[%clk 0:00:15.2]} 48... Rf6 {[%clk 0:00:13.8]} 49. g4 {[%clk 0:00:14]} 49...
hxg4 {[%clk 0:00:13.5]} 50. fxg4 {[%clk 0:00:14.3]} 50... Rf4 {[%clk 0:00:13.4]}
51. Kg3 {[%clk 0:00:14.5]} 51... Rf1 {[%clk 0:00:13.3]} 52. Re2 {[%clk
0:00:13.4]} 52... Rg1+ {[%clk 0:00:11.6]} 53. Kh3 {[%clk 0:00:12.7]} 53... Rh1+
{[%clk 0:00:11.1]} 54. Kg3 {[%clk 0:00:12.7]} 54... Rg1+ {[%clk 0:00:11]} 55.
Rg2 {[%clk 0:00:13.4]} 55... Rf1 {[%clk 0:00:09.8]} 56. Rf2 {[%clk 0:00:13.7]}
1-0

[Event "*** Titled Tuesday Blitz"]
[Site "Chess.com"]
[Date "2021.03.16"]
[Round "2"]
[White "Maddie"]
[Black "Taran2004"]
[Result "0-1"]
[WhiteElo "2071"]
[BlackElo "2415"]
[TimeControl "180+1"]
[EndTime "10:18:13 PDT"]
[Termination "Taran2004 won on time"]

1. d4 {[%clk 0:02:57.9]} 1... Nf6 {[%clk 0:02:59.8]} 2. c4 {[%clk 0:02:57.1]}
2... g6 {[%clk 0:03:00.1]} 3. Nc3 {[%clk 0:02:56.8]} 3... Bg7 {[%clk 0:03:00.6]}
4. e4 {[%clk 0:02:56.5]} 4... O-O {[%clk 0:03:01.2]} 5. f4 {[%clk 0:02:56.9]}
5... d6 {[%clk 0:03:01.2]} 6. Nf3 {[%clk 0:02:55.5]} 6... c5 {[%clk 0:03:00.6]}
7. Be3 {[%clk 0:02:53.1]} 7... cxd4 {[%clk 0:02:59.3]} 8. Nxd4 {[%clk
0:02:52.9]} 8... Nc6 {[%clk 0:02:59.9]} 9. Be2 {[%clk 0:02:49.3]} 9... a6 {[%clk
0:02:57]} 10. O-O {[%clk 0:02:48.9]} 10... Qc7 {[%clk 0:02:56.8]} 11. Rc1 {[%clk
0:02:44.3]} 11... Bd7 {[%clk 0:02:56.3]} 12. Qd2 {[%clk 0:02:43.7]} 12... Rac8
{[%clk 0:02:55.3]} 13. Bf3 {[%clk 0:02:41.6]} 13... e5 {[%clk 0:02:48.3]} 14.
Nxc6 {[%clk 0:02:27.6]} 14... Bxc6 {[%clk 0:02:32.4]} 15. b3 {[%clk 0:02:15.1]}
15... Rfd8 {[%clk 0:02:25.5]} 16. Nd5 {[%clk 0:02:13.1]} 16... Bxd5 {[%clk
0:02:18.8]} 17. cxd5 {[%clk 0:02:13.3]} 17... Qe7 {[%clk 0:02:16.4]} 18. f5
{[%clk 0:01:48.2]} 18... b5 {[%clk 0:02:08.1]} 19. fxg6 {[%clk 0:01:47.2]} 19...
fxg6 {[%clk 0:02:05.5]} 20. Bg5 {[%clk 0:01:39.1]} 20... Qa7+ {[%clk 0:01:57.9]}
21. Kh1 {[%clk 0:01:38]} 21... Rf8 {[%clk 0:01:52.5]} 22. Bxf6 {[%clk
0:01:28.3]} 22... Bxf6 {[%clk 0:01:53.4]} 23. Bg4 {[%clk 0:01:28.3]} 23... Rxc1
{[%clk 0:01:52.6]} 24. Rxc1 {[%clk 0:01:28.6]} 24... Kg7 {[%clk 0:01:48]} 25.
Rc6 {[%clk 0:01:27.9]} 25... Bg5 {[%clk 0:01:36.9]} 26. Qe2 {[%clk 0:01:11.7]}
26... Qe3 {[%clk 0:01:34.8]} 27. g3 {[%clk 0:00:43.6]} 27... h5 {[%clk
0:01:13.2]} 28. Qxe3 {[%clk 0:00:36.2]} 28... Bxe3 {[%clk 0:01:14.1]} 29. Bh3
{[%clk 0:00:34.4]} 29... Bc5 {[%clk 0:01:05.6]} 30. Rxa6 {[%clk 0:00:33.1]}
30... g5 {[%clk 0:01:06.2]} 31. Ra5 {[%clk 0:00:29.8]} 31... b4 {[%clk
0:01:00.6]} 32. Rb5 {[%clk 0:00:25.7]} 32... Rf2 {[%clk 0:00:58.3]} 33. Bg2
{[%clk 0:00:22.8]} 33... Rxa2 {[%clk 0:00:57.5]} 34. h4 {[%clk 0:00:19.5]} 34...
g4 {[%clk 0:00:54.6]} 35. Rb7+ {[%clk 0:00:18.5]} 35... Kg6 {[%clk 0:00:54]} 36.
Bf1 {[%clk 0:00:16.1]} 36... Ra1 {[%clk 0:00:44.1]} 37. Kg2 {[%clk 0:00:15.9]}
37... Re1 {[%clk 0:00:44.7]} 38. Bd3 {[%clk 0:00:15.2]} 38... Re3 {[%clk
0:00:44.7]} 39. Bb5 {[%clk 0:00:13.6]} 39... Rxb3 {[%clk 0:00:42.4]} 40. Be8+
{[%clk 0:00:13.2]} 40... Kh6 {[%clk 0:00:41.9]} 41. Re7 {[%clk 0:00:12.2]} 41...
Rb2+ {[%clk 0:00:40.9]} 42. Kf1 {[%clk 0:00:12.3]} 42... Rf2+ {[%clk 0:00:40.8]}
43. Ke1 {[%clk 0:00:12.4]} 43... Rf6 {[%clk 0:00:37.9]} 44. Rb7 {[%clk
0:00:06.1]} 44... Bf2+ {[%clk 0:00:35.3]} 45. Ke2 {[%clk 0:00:05.6]} 45... Bxg3
{[%clk 0:00:35.7]} 46. Rxb4 {[%clk 0:00:04.4]} 46... Bxh4 {[%clk 0:00:36]} 47.
Rb8 {[%clk 0:00:03]} 47... Kg5 {[%clk 0:00:33.3]} 48. Bd7 {[%clk 0:00:02.9]}
48... Bg3 {[%clk 0:00:31.4]} 49. Bf5 {[%clk 0:00:02.7]} 49... Rxf5 {[%clk
0:00:27.4]} 50. Rg8+ {[%clk 0:00:03.2]} 50... Kf4 {[%clk 0:00:25.1]} 51. Rf8
{[%clk 0:00:03.4]} 51... Rxf8 {[%clk 0:00:24.6]} 0-1